[Event "December 5 Early 2023"]
[Site "https://www.chess.com"]
[Date "2023.12.05"]
[Round "6"]
[White "Tan, Jonathan"]
[Black "IM_ArthurDW08"]
[Result "0-1"]
[Board "49"]
[TimeControl "180+1"]
[WhiteFideId "5200482"]
[WhiteElo "2522"]
[BlackElo "2805"]
[WhiteTeam "PHI"]
[WhiteClock "0:00:00"]
[BlackClock "0:00:04"]

1. d4 {[%clk 0:03:00]}  Nf6 {[%clk 0:03:00]} 2. Nc3 {[%clk 0:03:00]}  d5 {[%clk 0:02:57]} 3. Bf4 {[%clk 0:03:01]}  g6 {[%clk 0:02:54]} 4. e3 {[%clk 0:03:00]}  Bg7 {[%clk 0:02:54]} 5. h4 {[%clk 0:03:00]}  h5 {[%clk 0:02:54]} 6. Nf3 {[%clk 0:03:00]}  O-O {[%clk 0:02:52]} 7. Ne5 {[%clk 0:02:57]}  c5 {[%clk 0:02:52]} 8. Be2 {[%clk 0:02:45]}  cxd4 {[%clk 0:02:48]} 9. exd4 {[%clk 0:02:44]}  Nc6 {[%clk 0:02:49]} 10. Nxc6 {[%clk 0:02:29]}  bxc6 {[%clk 0:02:50]} 11. Qd2 {[%clk 0:02:19]}  c5 {[%clk 0:02:37]} 12. Be5 {[%clk 0:02:13]}  cxd4 {[%clk 0:02:32]} 13. Qxd4 {[%clk 0:02:08]}  Be6 {[%clk 0:02:33]} 14. O-O-O {[%clk 0:01:56]}  Qa5 {[%clk 0:02:27]} 15. g4 {[%clk 0:01:50]}  Rab8 {[%clk 0:02:09]} 16. a3 {[%clk 0:01:45]}  hxg4 {[%clk 0:02:03]} 17. h5 {[%clk 0:01:45]}  Bh6+ {[%clk 0:02:02]} 18. Bf4 {[%clk 0:01:35]}  Bxf4+ {[%clk 0:01:37]} 19. Qxf4 {[%clk 0:01:34]}  d4 {[%clk 0:01:28]} 20. Rxd4 {[%clk 0:00:54]}  Nxh5 {[%clk 0:01:26]} 21. Qh6 {[%clk 0:00:45]}  Qe5 {[%clk 0:00:43]} 22. Re4 {[%clk 0:00:32]}  Qg7 {[%clk 0:00:43]} 23. Qxg7+ {[%clk 0:00:28]}  Kxg7 {[%clk 0:00:42]} 24. Bxg4 {[%clk 0:00:24]}  Nf6 {[%clk 0:00:43]} 25. Bxe6 {[%clk 0:00:23]}  Nxe4 {[%clk 0:00:43]} 26. Nxe4 {[%clk 0:00:23]}  fxe6 {[%clk 0:00:44]} 27. Ng5 {[%clk 0:00:21]}  Rxf2 {[%clk 0:00:43]} 28. Rh7+ {[%clk 0:00:21]}  Kg8 {[%clk 0:00:36]} 29. Rxe7 {[%clk 0:00:21]}  Rc8 {[%clk 0:00:34]} 30. c3 {[%clk 0:00:19]}  Rd8 {[%clk 0:00:19]} 31. Ne4 {[%clk 0:00:14]}  Rh2 {[%clk 0:00:12]} 32. Rxe6 {[%clk 0:00:13]}  Kg7 {[%clk 0:00:10]} 33. Re7+ {[%clk 0:00:12]}  Kh6 {[%clk 0:00:10]} 34. c4 {[%clk 0:00:12]}  Rd4 {[%clk 0:00:09]} 35. Nf6 {[%clk 0:00:12]}  Rxc4+ {[%clk 0:00:08]} 36. Kb1 {[%clk 0:00:12]}  Kg5 {[%clk 0:00:08]} 37. Ne4+ {[%clk 0:00:11]}  Kf4 {[%clk 0:00:08]} 38. Nc3 {[%clk 0:00:09]}  g5 {[%clk 0:00:04]} 39. Rf7+ {[%clk 0:00:08]}  Kg3 {[%clk 0:00:04]} 40. Rxa7 {[%clk 0:00:08]}  g4 {[%clk 0:00:04]} 41. Rg7 {[%clk 0:00:08]}  Kf3 {[%clk 0:00:04]} 42. a4 {[%clk 0:00:06]}  g3 {[%clk 0:00:04]} 43. a5 {[%clk 0:00:06]}  Rg4 {[%clk 0:00:03]} 44. Rf7+ {[%clk 0:00:05]}  Rf4 {[%clk 0:00:04]} 45. Rxf4+ {[%clk 0:00:02]}  Kxf4 {[%clk 0:00:05]} 46. a6 {[%clk 0:00:00]}  Rh6 {[%clk 0:00:04]} 0-1

[Event "December 5 Early 2023"]
[Site "https://www.chess.com"]
[Date "2023.12.05"]
[Round "6"]
[White "Lund, Gunnar"]
[Black "Xiong, Jeffery"]
[Result "0-1"]
[Board "53"]
[TimeControl "180+1"]
[WhiteFideId "1520814"]
[BlackFideId "2047640"]
[WhiteElo "2590"]
[BlackElo "2993"]
[WhiteTeam "NOR"]
[BlackTeam "USA"]
[WhiteClock "0:00:02"]
[BlackClock "0:01:02"]

1. d4 {[%clk 0:03:00]}  Nf6 {[%clk 0:02:59]} 2. c4 {[%clk 0:03:01]}  e6 {[%clk 0:03:00]} 3. g3 {[%clk 0:03:01]}  c5 {[%clk 0:03:00]} 4. d5 {[%clk 0:03:00]}  exd5 {[%clk 0:03:00]} 5. cxd5 {[%clk 0:03:00]}  d6 {[%clk 0:03:00]} 6. Nc3 {[%clk 0:03:00]}  g6 {[%clk 0:03:00]} 7. Bg2 {[%clk 0:03:00]}  Bg7 {[%clk 0:03:01]} 8. Nf3 {[%clk 0:03:01]}  O-O {[%clk 0:03:02]} 9. O-O {[%clk 0:03:01]}  Re8 {[%clk 0:02:54]} 10. Re1 {[%clk 0:02:58]}  h6 {[%clk 0:02:49]} 11. Nd2 {[%clk 0:02:51]}  a6 {[%clk 0:02:47]} 12. a4 {[%clk 0:02:50]}  Nbd7 {[%clk 0:02:41]} 13. Nc4 {[%clk 0:02:45]}  Nb6 {[%clk 0:02:41]} 14. Ne3 {[%clk 0:02:18]}  Ng4 {[%clk 0:02:41]} 15. Nxg4 {[%clk 0:01:55]}  Bxg4 {[%clk 0:02:42]} 16. h3 {[%clk 0:01:54]}  Bc8 {[%clk 0:02:39]} 17. e4 {[%clk 0:01:48]}  Kh7 {[%clk 0:02:35]} 18. h4 {[%clk 0:01:39]}  f5 {[%clk 0:02:35]} 19. h5 {[%clk 0:01:39]}  g5 {[%clk 0:02:35]} 20. a5 {[%clk 0:01:19]}  Nc4 {[%clk 0:02:35]} 21. Qc2 {[%clk 0:00:47]}  Qf6 {[%clk 0:02:33]} 22. Qa4 {[%clk 0:00:38]}  Qe5 {[%clk 0:01:20]} 23. Qxc4 {[%clk 0:00:36]}  f4 {[%clk 0:01:19]} 24. Qd3 {[%clk 0:00:31]}  Rf8 {[%clk 0:01:17]} 25. Bd2 {[%clk 0:00:22]}  c4 {[%clk 0:01:13]} 26. Qf3 {[%clk 0:00:19]}  g4 {[%clk 0:01:10]} 27. gxf4 {[%clk 0:00:06]}  gxf3 {[%clk 0:01:09]} 28. fxe5 {[%clk 0:00:07]}  Bxe5 {[%clk 0:01:05]} 29. Bf1 {[%clk 0:00:04]}  Rg8+ {[%clk 0:01:02]} 30. Kh1 {[%clk 0:00:04]}  Rg4 {[%clk 0:01:03]} 31. Bxc4 {[%clk 0:00:02]}  Rh4+ {[%clk 0:01:01]} 32. Kg1 {[%clk 0:00:03]}  Bh3 {[%clk 0:01:01]} 33. Bf4 {[%clk 0:00:01]}  Bxf4 {[%clk 0:01:01]} 34. Bd3 {[%clk 0:00:01]}  Rg8+ {[%clk 0:01:01]} 35. Kh1 {[%clk 0:00:01]}  Bg2+ {[%clk 0:01:02]} 36. Kg1 {[%clk 0:00:02]}  Bh2# {[%clk 0:01:02]} 0-1

[Event "December 5 Early 2023"]
[Site "https://www.chess.com"]
[Date "2023.12.05"]
[Round "6"]
[White "Galchenko, Matvey"]
[Black "Boor, Carl"]
[Result "1-0"]
[Board "54"]
[TimeControl "180+1"]
[WhiteFideId "24175480"]
[BlackFideId "2017008"]
[WhiteElo "2939"]
[BlackElo "2588"]
[WhiteTeam "FID"]
[BlackTeam "USA"]
[WhiteClock "0:00:07"]
[BlackClock "0:00:00"]

1. e4 {[%clk 0:03:00]}  e5 {[%clk 0:02:59]} 2. Nf3 {[%clk 0:03:00]}  Nf6 {[%clk 0:02:59]} 3. Nc3 {[%clk 0:02:53]}  Nc6 {[%clk 0:02:58]} 4. Nxe5 {[%clk 0:02:53]}  Nxe5 {[%clk 0:02:57]} 5. d4 {[%clk 0:02:53]}  Nc6 {[%clk 0:02:56]} 6. d5 {[%clk 0:02:53]}  Ne5 {[%clk 0:02:43]} 7. f4 {[%clk 0:02:53]}  Ng6 {[%clk 0:02:41]} 8. e5 {[%clk 0:02:54]}  Bb4 {[%clk 0:02:14]} 9. Qd4 {[%clk 0:02:33]}  Qe7 {[%clk 0:02:13]} 10. Be2 {[%clk 0:02:22]}  Bc5 {[%clk 0:01:44]} 11. exf6 {[%clk 0:01:17]}  Bxd4 {[%clk 0:01:43]} 12. fxe7 {[%clk 0:01:17]}  Bxc3+ {[%clk 0:01:41]} 13. bxc3 {[%clk 0:01:16]}  d6 {[%clk 0:01:38]} 14. O-O {[%clk 0:01:08]}  Nxe7 {[%clk 0:01:35]} 15. c4 {[%clk 0:01:06]}  Bf5 {[%clk 0:01:29]} 16. Bb2 {[%clk 0:01:03]}  Rg8 {[%clk 0:01:24]} 17. g4 {[%clk 0:00:49]}  Bxc2 {[%clk 0:01:20]} 18. Rac1 {[%clk 0:00:45]}  Ba4 {[%clk 0:01:05]} 19. Bd3 {[%clk 0:00:40]}  O-O-O {[%clk 0:00:45]} 20. Bxh7 {[%clk 0:00:34]}  Rh8 {[%clk 0:00:44]} 21. Bd3 {[%clk 0:00:33]}  Rh3 {[%clk 0:00:38]} 22. Bb1 {[%clk 0:00:24]}  Rdh8 {[%clk 0:00:31]} 23. Rf2 {[%clk 0:00:13]}  f6 {[%clk 0:00:26]} 24. Re1 {[%clk 0:00:12]}  Kd8 {[%clk 0:00:24]} 25. Rfe2 {[%clk 0:00:10]}  Nc8 {[%clk 0:00:13]} 26. g5 {[%clk 0:00:11]}  Rf8 {[%clk 0:00:05]} 27. gxf6 {[%clk 0:00:05]}  gxf6 {[%clk 0:00:05]} 28. Rg2 {[%clk 0:00:06]}  Rh6 {[%clk 0:00:05]} 29. Rg7 {[%clk 0:00:05]}  Bd7 {[%clk 0:00:03]} 30. Bd3 {[%clk 0:00:04]}  b6 {[%clk 0:00:03]} 31. a3 {[%clk 0:00:04]}  a6 {[%clk 0:00:03]} 32. Bd4 {[%clk 0:00:04]}  b5 {[%clk 0:00:03]} 33. c5 {[%clk 0:00:05]}  dxc5 {[%clk 0:00:03]} 34. Bxc5 {[%clk 0:00:06]}  Nd6 {[%clk 0:00:04]} 35. Ree7 {[%clk 0:00:07]}  Bf5 {[%clk 0:00:00]} 36. Rxc7 {[%clk 0:00:07]} 1-0

[Event "December 5 Early 2023"]
[Site "https://www.chess.com"]
[Date "2023.12.05"]
[Round "6"]
[White "Teterev, Vitaly"]
[Black "Gharibyan, Mamikon"]
[Result "0-1"]
[Board "57"]
[TimeControl "180+1"]
[WhiteFideId "13501429"]
[BlackFideId "13308300"]
[WhiteElo "2570"]
[BlackElo "2817"]
[WhiteTeam "BLR"]
[BlackTeam "ARM"]
[WhiteClock "0:00:00"]
[BlackClock "0:00:04"]

1. e4 {[%clk 0:03:00]}  e5 {[%clk 0:02:56]} 2. Nf3 {[%clk 0:03:00]}  Nc6 {[%clk 0:02:57]} 3. Bb5 {[%clk 0:03:00]}  Nf6 {[%clk 0:02:57]} 4. O-O {[%clk 0:02:59]}  Nxe4 {[%clk 0:02:57]} 5. Re1 {[%clk 0:02:55]}  Nd6 {[%clk 0:02:57]} 6. Nxe5 {[%clk 0:02:56]}  Be7 {[%clk 0:02:56]} 7. Bf1 {[%clk 0:02:52]}  Nxe5 {[%clk 0:02:56]} 8. Rxe5 {[%clk 0:02:51]}  O-O {[%clk 0:02:56]} 9. d4 {[%clk 0:02:51]}  Bf6 {[%clk 0:02:56]} 10. Re1 {[%clk 0:02:49]}  Re8 {[%clk 0:02:53]} 11. Rxe8+ {[%clk 0:02:33]}  Nxe8 {[%clk 0:02:51]} 12. Nc3 {[%clk 0:02:34]}  d5 {[%clk 0:02:50]} 13. Bf4 {[%clk 0:02:31]}  c6 {[%clk 0:02:48]} 14. Be5 {[%clk 0:02:25]}  Bf5 {[%clk 0:02:19]} 15. Qd2 {[%clk 0:02:16]}  Nc7 {[%clk 0:02:07]} 16. Bxf6 {[%clk 0:02:10]}  Qxf6 {[%clk 0:02:06]} 17. Re1 {[%clk 0:02:03]}  Ne6 {[%clk 0:02:05]} 18. Ne2 {[%clk 0:02:02]}  h5 {[%clk 0:02:05]} 19. c3 {[%clk 0:01:59]}  g6 {[%clk 0:01:58]} 20. Ng3 {[%clk 0:01:56]}  Kg7 {[%clk 0:01:57]} 21. Nxf5+ {[%clk 0:01:53]}  Qxf5 {[%clk 0:01:58]} 22. Bd3 {[%clk 0:01:52]}  Qf6 {[%clk 0:01:58]} 23. Re5 {[%clk 0:01:49]}  h4 {[%clk 0:01:57]} 24. Qe3 {[%clk 0:01:47]}  a5 {[%clk 0:01:49]} 25. b3 {[%clk 0:01:45]}  a4 {[%clk 0:01:33]} 26. b4 {[%clk 0:01:44]}  b5 {[%clk 0:01:15]} 27. a3 {[%clk 0:01:35]}  Rh8 {[%clk 0:01:15]} 28. Be2 {[%clk 0:01:31]}  Rh6 {[%clk 0:00:30]} 29. Bg4 {[%clk 0:01:29]}  Nf4 {[%clk 0:00:30]} 30. Bd7 {[%clk 0:01:07]}  Rh8 {[%clk 0:00:23]} 31. Be8 {[%clk 0:00:50]}  h3 {[%clk 0:00:14]} 32. g3 {[%clk 0:00:50]}  Ng2 {[%clk 0:00:14]} 33. Qe2 {[%clk 0:00:45]}  Nf4 {[%clk 0:00:07]} 34. gxf4 {[%clk 0:00:37]}  Qxf4 {[%clk 0:00:08]} 35. Bd7 {[%clk 0:00:37]}  Qc1+ {[%clk 0:00:06]} 36. Qe1 {[%clk 0:00:37]}  Qc2 {[%clk 0:00:05]} 37. Bxc6 {[%clk 0:00:22]}  Rh4 {[%clk 0:00:05]} 38. Bxd5 {[%clk 0:00:16]}  Rg4+ {[%clk 0:00:05]} 39. Kh1 {[%clk 0:00:16]}  Qb2 {[%clk 0:00:06]} 40. Bf3 {[%clk 0:00:15]}  Rf4 {[%clk 0:00:07]} 41. Re3 {[%clk 0:00:13]}  Qxa3 {[%clk 0:00:07]} 42. Bd5 {[%clk 0:00:05]}  Qb2 {[%clk 0:00:06]} 43. Re2 {[%clk 0:00:03]}  Qa3 {[%clk 0:00:04]} 44. Rc2 {[%clk 0:00:03]}  Rf5 {[%clk 0:00:03]} 45. Be4 {[%clk 0:00:02]}  Rf6 {[%clk 0:00:03]} 46. Bd3 {[%clk 0:00:02]}  Qb3 {[%clk 0:00:03]} 47. Rc1 {[%clk 0:00:02]}  Qd5+ {[%clk 0:00:04]} 48. Be4 {[%clk 0:00:02]}  Qc4 {[%clk 0:00:04]} 49. f3 {[%clk 0:00:03]}  a3 {[%clk 0:00:04]} 50. Ra1 {[%clk 0:00:03]}  a2 {[%clk 0:00:03]} 51. Qd2 {[%clk 0:00:03]}  Ra6 {[%clk 0:00:03]} 52. d5 {[%clk 0:00:03]}  f5 {[%clk 0:00:04]} 53. Bc2 {[%clk 0:00:02]}  Rd6 {[%clk 0:00:04]} 54. Qd4+ {[%clk 0:00:02]}  Qxd4 {[%clk 0:00:05]} 55. cxd4 {[%clk 0:00:03]}  Rxd5 {[%clk 0:00:05]} 56. Rxa2 {[%clk 0:00:02]}  Rxd4 {[%clk 0:00:06]} 57. Ra1 {[%clk 0:00:02]}  Rxb4 {[%clk 0:00:06]} 58. Bd3 {[%clk 0:00:02]}  Rb3 {[%clk 0:00:05]} 59. Be2 {[%clk 0:00:03]}  Rc3 {[%clk 0:00:05]} 60. Bxb5 {[%clk 0:00:03]}  Rxf3 {[%clk 0:00:05]} 61. Kg1 {[%clk 0:00:03]}  Kh6 {[%clk 0:00:05]} 62. Bf1 {[%clk 0:00:04]}  Kg5 {[%clk 0:00:04]} 63. Ra4 {[%clk 0:00:04]}  Rc3 {[%clk 0:00:03]} 64. Be2 {[%clk 0:00:04]}  f4 {[%clk 0:00:02]} 65. Kf2 {[%clk 0:00:04]}  Kf5 {[%clk 0:00:02]} 66. Ra5+ {[%clk 0:00:05]}  Ke4 {[%clk 0:00:03]} 67. Ra4+ {[%clk 0:00:05]}  Kf5 {[%clk 0:00:03]} 68. Ra6 {[%clk 0:00:05]}  Rc2 {[%clk 0:00:02]} 69. Ra3 {[%clk 0:00:03]}  g5 {[%clk 0:00:01]} 70. Ra5+ {[%clk 0:00:03]}  Ke4 {[%clk 0:00:02]} 71. Ra4+ {[%clk 0:00:03]}  Kf5 {[%clk 0:00:02]} 72. Kf1 {[%clk 0:00:03]}  g4 {[%clk 0:00:02]} 73. Ra5+ {[%clk 0:00:03]}  Ke4 {[%clk 0:00:03]} 74. Ra4+ {[%clk 0:00:02]}  Ke3 {[%clk 0:00:03]} 75. Ra3+ {[%clk 0:00:02]}  Kd4 {[%clk 0:00:04]} 76. Ra4+ {[%clk 0:00:02]}  Ke3 {[%clk 0:00:04]} 77. Bxg4 {[%clk 0:00:02]}  Rxh2 {[%clk 0:00:04]} 78. Ra3+ {[%clk 0:00:02]}  Ke4 {[%clk 0:00:04]} 79. Bxh3 {[%clk 0:00:02]}  f3 {[%clk 0:00:04]} 80. Bg4 {[%clk 0:00:02]}  Rh1+ {[%clk 0:00:03]} 81. Kf2 {[%clk 0:00:02]}  Rc1 {[%clk 0:00:04]} 82. Bxf3+ {[%clk 0:00:00]}  Kd4 {[%clk 0:00:04]} 0-1

[Event "December 5 Early 2023"]
[Site "https://www.chess.com"]
[Date "2023.12.05"]
[Round "6"]
[White "Vovk, Orest"]
[Black "Skvortsov, Andrei"]
[Result "1/2-1/2"]
[Board "60"]
[TimeControl "180+1"]
[WhiteFideId "14113490"]
[BlackFideId "24108600"]
[WhiteElo "2562"]
[BlackElo "2781"]
[WhiteTeam "UKR"]
[BlackTeam "MNE"]
[WhiteClock "0:00:07"]
[BlackClock "0:00:20"]

1. h4 {[%clk 0:03:00]}  a5 {[%clk 0:02:59]} 2. h5 {[%clk 0:03:01]}  a4 {[%clk 0:02:59]} 3. a3 {[%clk 0:03:01]}  h6 {[%clk 0:02:59]} 4. Nc3 {[%clk 0:02:56]}  Nf6 {[%clk 0:02:59]} 5. e4 {[%clk 0:02:56]}  e5 {[%clk 0:02:58]} 6. Nf3 {[%clk 0:02:56]}  Nc6 {[%clk 0:02:58]} 7. Bb5 {[%clk 0:02:56]}  Nd4 {[%clk 0:02:54]} 8. Nxd4 {[%clk 0:02:52]}  exd4 {[%clk 0:02:54]} 9. e5 {[%clk 0:02:53]}  Qe7 {[%clk 0:02:50]} 10. Qe2 {[%clk 0:02:44]}  dxc3 {[%clk 0:02:49]} 11. exf6 {[%clk 0:02:44]}  Qxe2+ {[%clk 0:02:41]} 12. Kxe2 {[%clk 0:02:35]}  cxd2 {[%clk 0:02:40]} 13. Bxd2 {[%clk 0:02:35]}  gxf6 {[%clk 0:02:40]} 14. Rhe1 {[%clk 0:02:29]}  c6 {[%clk 0:02:37]} 15. Kf1+ {[%clk 0:02:21]}  Kd8 {[%clk 0:02:36]} 16. Bc3 {[%clk 0:02:17]}  Bg7 {[%clk 0:02:35]} 17. Bc4 {[%clk 0:02:06]}  d5 {[%clk 0:02:35]} 18. Rad1 {[%clk 0:02:04]}  Be6 {[%clk 0:02:25]} 19. f4 {[%clk 0:01:59]}  Re8 {[%clk 0:02:16]} 20. Bd3 {[%clk 0:01:43]}  Bg4 {[%clk 0:02:08]} 21. Rxe8+ {[%clk 0:01:39]}  Kxe8 {[%clk 0:02:09]} 22. Be2 {[%clk 0:01:34]}  Bf5 {[%clk 0:02:06]} 23. Bd3 {[%clk 0:01:27]}  Be6 {[%clk 0:02:06]} 24. f5 {[%clk 0:01:24]}  Bd7 {[%clk 0:02:05]} 25. Bb4 {[%clk 0:01:22]}  Kd8 {[%clk 0:02:01]} 26. Bd6 {[%clk 0:01:20]}  b5 {[%clk 0:01:51]} 27. Re1 {[%clk 0:01:18]}  Rc8 {[%clk 0:01:46]} 28. Bb4 {[%clk 0:01:08]}  Kc7 {[%clk 0:01:44]} 29. Re7 {[%clk 0:01:02]}  Rf8 {[%clk 0:01:39]} 30. Ba5+ {[%clk 0:00:57]}  Kc8 {[%clk 0:01:37]} 31. Bb4 {[%clk 0:00:51]}  Kd8 {[%clk 0:01:32]} 32. Kf2 {[%clk 0:00:45]}  Kc8 {[%clk 0:01:19]} 33. Bd6 {[%clk 0:00:35]}  Be8 {[%clk 0:01:11]} 34. Rc7+ {[%clk 0:00:28]}  Kd8 {[%clk 0:01:09]} 35. Ra7 {[%clk 0:00:22]}  Rg8 {[%clk 0:01:05]} 36. b3 {[%clk 0:00:18]}  axb3 {[%clk 0:01:04]} 37. cxb3 {[%clk 0:00:18]}  Bf8 {[%clk 0:01:02]} 38. Bc7+ {[%clk 0:00:13]}  Kc8 {[%clk 0:01:02]} 39. Bb6 {[%clk 0:00:13]}  Bd6 {[%clk 0:00:57]} 40. a4 {[%clk 0:00:11]}  Bb8 {[%clk 0:00:53]} 41. Re7 {[%clk 0:00:09]}  Bd6 {[%clk 0:00:53]} 42. Ra7 {[%clk 0:00:09]}  bxa4 {[%clk 0:00:53]} 43. bxa4 {[%clk 0:00:09]}  Kb8 {[%clk 0:00:52]} 44. Ba6 {[%clk 0:00:08]}  Be5 {[%clk 0:00:18]} 45. Rb7+ {[%clk 0:00:07]}  Ka8 {[%clk 0:00:19]} 46. Ra7+ {[%clk 0:00:07]}  Kb8 {[%clk 0:00:19]} 47. Rb7+ {[%clk 0:00:07]}  Ka8 {[%clk 0:00:19]} 48. Ra7+ {[%clk 0:00:07]}  Kb8 {[%clk 0:00:20]} 1/2-1/2

[Event "December 5 Early 2023"]
[Site "https://www.chess.com"]
[Date "2023.12.05"]
[Round "6"]
[White "Halkias, Stelios"]
[Black "1mbl4"]
[Result "0-1"]
[Board "62"]
[TimeControl "180+1"]
[WhiteFideId "4201809"]
[WhiteElo "2769"]
[BlackElo "2556"]
[WhiteTeam "GRE"]
[WhiteClock "0:00:01"]
[BlackClock "0:00:17"]

1. Nf3 {[%clk 0:03:00]}  Nf6 {[%clk 0:02:59]} 2. c4 {[%clk 0:03:00]}  g6 {[%clk 0:02:59]} 3. Nc3 {[%clk 0:02:59]}  Bg7 {[%clk 0:03:00]} 4. g3 {[%clk 0:03:00]}  O-O {[%clk 0:03:00]} 5. Bg2 {[%clk 0:03:00]}  d5 {[%clk 0:03:01]} 6. cxd5 {[%clk 0:03:00]}  Nxd5 {[%clk 0:03:02]} 7. O-O {[%clk 0:03:00]}  Nb6 {[%clk 0:03:01]} 8. d4 {[%clk 0:02:59]}  Nc6 {[%clk 0:03:01]} 9. e3 {[%clk 0:02:58]}  a5 {[%clk 0:03:01]} 10. Qe2 {[%clk 0:02:56]}  e5 {[%clk 0:02:59]} 11. dxe5 {[%clk 0:02:53]}  Nxe5 {[%clk 0:02:59]} 12. Nxe5 {[%clk 0:02:53]}  Bxe5 {[%clk 0:02:59]} 13. e4 {[%clk 0:02:52]}  Re8 {[%clk 0:02:58]} 14. Be3 {[%clk 0:02:46]}  Be6 {[%clk 0:02:54]} 15. Rfd1 {[%clk 0:02:38]}  Qe7 {[%clk 0:02:52]} 16. f4 {[%clk 0:02:34]}  Bc4 {[%clk 0:02:39]} 17. Qf2 {[%clk 0:02:27]}  Bg7 {[%clk 0:02:15]} 18. e5 {[%clk 0:02:22]}  f6 {[%clk 0:02:02]} 19. Bxb7 {[%clk 0:02:10]}  Rab8 {[%clk 0:02:02]} 20. Bc6 {[%clk 0:02:10]}  Red8 {[%clk 0:02:02]} 21. Bc5 {[%clk 0:01:38]}  Qe6 {[%clk 0:01:56]} 22. exf6 {[%clk 0:01:32]}  Bxf6 {[%clk 0:01:23]} 23. Bf3 {[%clk 0:01:31]}  Bd3 {[%clk 0:01:12]} 24. Re1 {[%clk 0:01:17]}  Qc4 {[%clk 0:01:12]} 25. Rad1 {[%clk 0:01:14]}  Na4 {[%clk 0:00:56]} 26. Nxa4 {[%clk 0:00:58]}  Qxa4 {[%clk 0:00:57]} 27. b3 {[%clk 0:00:57]}  Qb5 {[%clk 0:00:54]} 28. Rc1 {[%clk 0:00:55]}  a4 {[%clk 0:00:46]} 29. bxa4 {[%clk 0:00:51]}  Qxa4 {[%clk 0:00:47]} 30. Be3 {[%clk 0:00:51]}  Rb2 {[%clk 0:00:45]} 31. Bc6 {[%clk 0:00:40]}  Qxa2 {[%clk 0:00:36]} 32. Qf3 {[%clk 0:00:40]}  Rxh2 {[%clk 0:00:23]} 33. Rcd1 {[%clk 0:00:35]}  Rc2 {[%clk 0:00:21]} 34. Be4 {[%clk 0:00:17]}  Qc4 {[%clk 0:00:21]} 35. Bxd3 {[%clk 0:00:15]}  Rxd3 {[%clk 0:00:22]} 36. Rxd3 {[%clk 0:00:11]}  Qxd3 {[%clk 0:00:23]} 37. Qa8+ {[%clk 0:00:11]}  Kg7 {[%clk 0:00:23]} 38. Bf2 {[%clk 0:00:11]}  Rxf2 {[%clk 0:00:19]} 39. Kxf2 {[%clk 0:00:03]}  Bd4+ {[%clk 0:00:19]} 40. Kg2 {[%clk 0:00:03]}  Qd2+ {[%clk 0:00:19]} 41. Kh3 {[%clk 0:00:03]}  Qxe1 {[%clk 0:00:19]} 42. Qd5 {[%clk 0:00:04]}  Bf6 {[%clk 0:00:17]} 43. Qd7+ {[%clk 0:00:01]}  Kh6 {[%clk 0:00:17]} 0-1

[Event "December 5 Early 2023"]
[Site "https://www.chess.com"]
[Date "2023.12.05"]
[Round "6"]
[White "Sharapov, Evgeny"]
[Black "Fier, Alexandr"]
[Result "0-1"]
[Board "64"]
[TimeControl "180+1"]
[WhiteFideId "14103133"]
[BlackFideId "2107139"]
[WhiteElo "2553"]
[BlackElo "2745"]
[WhiteTeam "UKR"]
[BlackTeam "BRA"]
[WhiteClock "0:01:00"]
[BlackClock "0:02:30"]

1. e4 {[%clk 0:03:00]}  g6 {[%clk 0:02:58]} 2. d4 {[%clk 0:02:59]}  Bg7 {[%clk 0:02:59]} 3. Nc3 {[%clk 0:03:00]}  d6 {[%clk 0:02:59]} 4. f4 {[%clk 0:02:59]}  a6 {[%clk 0:02:58]} 5. Nf3 {[%clk 0:02:59]}  b5 {[%clk 0:02:59]} 6. Bd3 {[%clk 0:02:56]}  Bb7 {[%clk 0:02:59]} 7. Be3 {[%clk 0:02:56]}  Nd7 {[%clk 0:03:00]} 8. O-O {[%clk 0:02:55]}  b4 {[%clk 0:02:55]} 9. Ne2 {[%clk 0:02:53]}  Ngf6 {[%clk 0:02:55]} 10. e5 {[%clk 0:02:50]}  Nd5 {[%clk 0:02:55]} 11. Bd2 {[%clk 0:02:49]}  e6 {[%clk 0:02:55]} 12. c4 {[%clk 0:02:44]}  bxc3 {[%clk 0:02:54]} 13. bxc3 {[%clk 0:02:45]}  O-O {[%clk 0:02:54]} 14. Kh1 {[%clk 0:02:40]}  Rb8 {[%clk 0:02:54]} 15. Rb1 {[%clk 0:02:38]}  N7b6 {[%clk 0:02:49]} 16. Ng3 {[%clk 0:02:31]}  a5 {[%clk 0:02:48]} 17. Ne4 {[%clk 0:02:30]}  f5 {[%clk 0:02:45]} 18. Neg5 {[%clk 0:02:18]}  Qd7 {[%clk 0:02:44]} 19. c4 {[%clk 0:02:18]}  Nb4 {[%clk 0:02:44]} 20. Bxb4 {[%clk 0:02:12]}  axb4 {[%clk 0:02:45]} 21. Rxb4 {[%clk 0:02:11]}  h6 {[%clk 0:02:45]} 22. Nh3 {[%clk 0:02:10]}  Bxf3 {[%clk 0:02:39]} 23. Qxf3 {[%clk 0:02:06]}  dxe5 {[%clk 0:02:39]} 24. dxe5 {[%clk 0:02:02]}  Rfd8 {[%clk 0:02:37]} 25. Nf2 {[%clk 0:01:55]}  Ra8 {[%clk 0:02:37]} 26. Rb2 {[%clk 0:01:40]}  Ra3 {[%clk 0:02:36]} 27. Rd1 {[%clk 0:01:27]}  Na4 {[%clk 0:02:36]} 28. Bc2 {[%clk 0:01:09]}  Rxf3 {[%clk 0:02:32]} 29. Rxd7 {[%clk 0:01:09]}  Rxd7 {[%clk 0:02:30]} 30. gxf3 {[%clk 0:01:00]}  Nxb2 {[%clk 0:02:30]} 0-1

[Event "December 5 Early 2023"]
[Site "https://www.chess.com"]
[Date "2023.12.05"]
[Round "6"]
[White "Thorfinnsson, Bjorn"]
[Black "Pourramezanali, Amirreza"]
[Result "1-0"]
[Board "67"]
[TimeControl "180+1"]
[WhiteFideId "2300982"]
[BlackFideId "12511412"]
[WhiteElo "2550"]
[BlackElo "2711"]
[WhiteTeam "ISL"]
[BlackTeam "IRI"]
[WhiteClock "0:01:01"]
[BlackClock "0:00:24"]

1. d4 {[%clk 0:03:00]}  d5 {[%clk 0:02:56]} 2. Nf3 {[%clk 0:03:00]}  Nf6 {[%clk 0:02:56]} 3. Bg5 {[%clk 0:03:01]}  h6 {[%clk 0:02:54]} 4. Bh4 {[%clk 0:03:00]}  c5 {[%clk 0:02:54]} 5. e3 {[%clk 0:03:00]}  Nc6 {[%clk 0:02:54]} 6. c3 {[%clk 0:03:00]}  Bg4 {[%clk 0:02:51]} 7. h3 {[%clk 0:02:59]}  Bxf3 {[%clk 0:02:50]} 8. Qxf3 {[%clk 0:02:57]}  e6 {[%clk 0:02:51]} 9. Bd3 {[%clk 0:02:55]}  Be7 {[%clk 0:02:51]} 10. O-O {[%clk 0:02:54]}  e5 {[%clk 0:02:42]} 11. dxe5 {[%clk 0:02:45]}  Nxe5 {[%clk 0:02:43]} 12. Bb5+ {[%clk 0:02:44]}  Kf8 {[%clk 0:02:40]} 13. Qe2 {[%clk 0:02:43]}  Ne4 {[%clk 0:02:28]} 14. Bxe7+ {[%clk 0:02:40]}  Qxe7 {[%clk 0:02:29]} 15. Bd3 {[%clk 0:02:39]}  Nxd3 {[%clk 0:02:19]} 16. Qxd3 {[%clk 0:02:39]}  Rd8 {[%clk 0:02:18]} 17. Nd2 {[%clk 0:02:38]}  Nf6 {[%clk 0:02:12]} 18. Rad1 {[%clk 0:02:37]}  g6 {[%clk 0:02:12]} 19. Qc2 {[%clk 0:02:18]}  Kg7 {[%clk 0:02:11]} 20. Nb3 {[%clk 0:02:13]}  b6 {[%clk 0:02:08]} 21. Rfe1 {[%clk 0:02:11]}  Rd6 {[%clk 0:02:07]} 22. Nd2 {[%clk 0:02:06]}  Re8 {[%clk 0:02:06]} 23. Nf3 {[%clk 0:02:06]}  Red8 {[%clk 0:02:01]} 24. b3 {[%clk 0:02:04]}  Ne4 {[%clk 0:02:00]} 25. Nd2 {[%clk 0:02:02]}  Ng5 {[%clk 0:01:52]} 26. c4 {[%clk 0:01:58]}  Qd7 {[%clk 0:01:43]} 27. Nb1 {[%clk 0:01:48]}  Kg8 {[%clk 0:01:24]} 28. Nc3 {[%clk 0:01:40]}  dxc4 {[%clk 0:01:21]} 29. Rxd6 {[%clk 0:01:38]}  Qxd6 {[%clk 0:01:21]} 30. Rd1 {[%clk 0:01:38]}  Qb8 {[%clk 0:01:13]} 31. bxc4 {[%clk 0:01:36]}  Rxd1+ {[%clk 0:01:12]} 32. Qxd1 {[%clk 0:01:36]}  Qe5 {[%clk 0:01:13]} 33. Qd3 {[%clk 0:01:27]}  Ne6 {[%clk 0:01:07]} 34. f4 {[%clk 0:01:25]}  Qc7 {[%clk 0:00:58]} 35. Nd5 {[%clk 0:01:23]}  Qd8 {[%clk 0:00:58]} 36. Qc3 {[%clk 0:01:23]}  Nc7 {[%clk 0:00:52]} 37. Qe5 {[%clk 0:01:14]}  Nxd5 {[%clk 0:00:48]} 38. cxd5 {[%clk 0:01:14]}  c4 {[%clk 0:00:48]} 39. d6 {[%clk 0:01:13]}  c3 {[%clk 0:00:44]} 40. Qe7 {[%clk 0:01:10]}  Qf8 {[%clk 0:00:44]} 41. Qc7 {[%clk 0:01:05]}  c2 {[%clk 0:00:39]} 42. d7 {[%clk 0:01:06]}  Kh7 {[%clk 0:00:36]} 43. Qxc2 {[%clk 0:01:04]}  Qd6 {[%clk 0:00:24]} 44. Qc8 {[%clk 0:01:01]} 1-0